[Event "Early-Titled-Tuesday-Blitz-September-26-2023"]
[Site "Chess.com"]
[Date "2023.09.26"]
[Round "10"]
[White "Bilan_Danila"]
[Black "viktorskliarov"]
[Result "0-1"]
[WhiteElo "2527"]
[BlackElo "2652"]
[TimeControl "180+1"]
[EndTime "9:57:46 PDT"]
[Termination "viktorskliarov won on time"]

1. d4 {[%clk 0:03:00.9]} 1... Nf6 {[%clk 0:02:59.7]} 2. Nf3 {[%clk 0:03:01.3]}
2... g6 {[%clk 0:03:00.2]} 3. Bg5 {[%clk 0:03:01]} 3... Bg7 {[%clk 0:03:00.9]}
4. c3 {[%clk 0:03:01.7]} 4... O-O {[%clk 0:03:00.7]} 5. Nbd2 {[%clk 0:03:02.3]}
5... d5 {[%clk 0:02:59.8]} 6. e3 {[%clk 0:03:01.8]} 6... Bf5 {[%clk 0:02:58.9]}
7. Be2 {[%clk 0:03:01.1]} 7... Nbd7 {[%clk 0:02:58.2]} 8. O-O {[%clk 0:02:59.7]}
8... h6 {[%clk 0:02:58.3]} 9. Bh4 {[%clk 0:02:59.7]} 9... c5 {[%clk 0:02:55.6]}
10. h3 {[%clk 0:02:53]} 10... Qb6 {[%clk 0:02:50]} 11. Qb3 {[%clk 0:02:43]}
11... c4 {[%clk 0:02:50]} 12. Qa3 {[%clk 0:02:43.3]} 12... Rfe8 {[%clk
0:02:43.4]} 13. b3 {[%clk 0:02:39.2]} 13... cxb3 {[%clk 0:02:36.1]} 14. axb3
{[%clk 0:02:40.1]} 14... e5 {[%clk 0:02:05.9]} 15. dxe5 {[%clk 0:02:40.4]} 15...
Nxe5 {[%clk 0:02:04.9]} 16. Nxe5 {[%clk 0:02:41.3]} 16... Rxe5 {[%clk
0:02:04.4]} 17. Nf3 {[%clk 0:02:40.7]} 17... Ree8 {[%clk 0:01:57.6]} 18. Nd4
{[%clk 0:02:40.9]} 18... Bd7 {[%clk 0:01:56.3]} 19. Bxf6 {[%clk 0:02:16.6]}
19... Bxf6 {[%clk 0:01:55.1]} 20. Rfd1 {[%clk 0:02:17]} 20... a6 {[%clk
0:01:43.3]} 21. Rac1 {[%clk 0:02:16.5]} 21... Rac8 {[%clk 0:01:41.4]} 22. Bf3
{[%clk 0:01:47.6]} 22... Re5 {[%clk 0:01:34.6]} 23. Ne2 {[%clk 0:01:29.8]} 23...
Be7 {[%clk 0:00:48.8]} 24. Qb2 {[%clk 0:01:28.6]} 24... Qa5 {[%clk 0:00:48.9]}
25. c4 {[%clk 0:01:21.4]} 25... dxc4 {[%clk 0:00:39.4]} 26. Rxd7 {[%clk
0:01:17.7]} 26... Ba3 {[%clk 0:00:38.8]} 27. Qb1 {[%clk 0:00:25.4]} 27... Bxc1
{[%clk 0:00:38]} 28. Qxc1 {[%clk 0:00:25.6]} 28... c3 {[%clk 0:00:37.8]} 29. Nd4
{[%clk 0:00:05.4]} 29... Rc7 {[%clk 0:00:36.2]} 30. Rxc7 {[%clk 0:00:02.6]}
30... Qxc7 {[%clk 0:00:37.1]} 31. Qc2 {[%clk 0:00:02.8]} 31... b5 {[%clk
0:00:35.1]} 32. g3 {[%clk 0:00:03.3]} 32... b4 {[%clk 0:00:34.3]} 33. Be2 {[%clk
0:00:03.5]} 33... a5 {[%clk 0:00:30.6]} 34. Bc4 {[%clk 0:00:04.1]} 34... Kg7
{[%clk 0:00:30.9]} 35. Qa2 {[%clk 0:00:03.6]} 35... Rc5 {[%clk 0:00:26.4]} 36.
Bd3 {[%clk 0:00:03.8]} 36... h5 {[%clk 0:00:22]} 37. Qc2 {[%clk 0:00:04.4]}
37... Qe7 {[%clk 0:00:16]} 38. h4 {[%clk 0:00:03.4]} 38... Qf6 {[%clk
0:00:15.1]} 39. Kg2 {[%clk 0:00:03.5]} 39... Rc8 {[%clk 0:00:13.8]} 40. Be2
{[%clk 0:00:03.4]} 40... Ra8 {[%clk 0:00:13.5]} 41. Bf3 {[%clk 0:00:03.8]} 41...
Ra7 {[%clk 0:00:13.5]} 42. Bd5 {[%clk 0:00:04.2]} 42... Rd7 {[%clk 0:00:09.6]}
43. Bc4 {[%clk 0:00:04.4]} 43... Rd8 {[%clk 0:00:08.4]} 44. Bd3 {[%clk
0:00:04.4]} 44... Ra8 {[%clk 0:00:08.2]} 45. Be4 {[%clk 0:00:05]} 45... Ra7
{[%clk 0:00:07]} 46. Bd5 {[%clk 0:00:05.2]} 46... Rd7 {[%clk 0:00:07]} 47. Bc4
{[%clk 0:00:05.4]} 47... a4 {[%clk 0:00:04.4]} 48. bxa4 {[%clk 0:00:05.5]} 48...
Rxd4 {[%clk 0:00:04.6]} 49. exd4 {[%clk 0:00:05.6]} 49... Qc6+ {[%clk
0:00:04.8]} 50. d5 {[%clk 0:00:02.6]} 50... Qxc4 {[%clk 0:00:05.3]} 51. d6
{[%clk 0:00:01.4]} 51... Qd5+ {[%clk 0:00:05.5]} 52. Kh2 {[%clk 0:00:01.9]}
52... Qxd6 {[%clk 0:00:06.1]} 53. a5 {[%clk 0:00:02.7]} 53... Qa6 {[%clk
0:00:05.8]} 54. Qa4 {[%clk 0:00:02.5]} 54... c2 {[%clk 0:00:04.1]} 55. Qxc2
{[%clk 0:00:02.8]} 55... Qxa5 {[%clk 0:00:04.6]} 56. Qb2+ {[%clk 0:00:03.5]}
56... Kg8 {[%clk 0:00:04.7]} 57. Qf6 {[%clk 0:00:04.1]} 57... Qb5 {[%clk
0:00:03.9]} 58. Qd8+ {[%clk 0:00:04.3]} 58... Kg7 {[%clk 0:00:04.1]} 59. Qd4+
{[%clk 0:00:04.7]} 59... Kf8 {[%clk 0:00:04.3]} 60. Qd8+ {[%clk 0:00:05.1]}
60... Kg7 {[%clk 0:00:04]} 61. Qd4+ {[%clk 0:00:05.8]} 61... Kh7 {[%clk
0:00:04]} 62. Qf6 {[%clk 0:00:05.7]} 62... Qb7 {[%clk 0:00:04.1]} 63. g4 {[%clk
0:00:02.9]} 63... b3 {[%clk 0:00:03.2]} 64. gxh5 {[%clk 0:00:02.7]} 64... b2
{[%clk 0:00:03.3]} 65. h6 {[%clk 0:00:03.4]} 65... Qb8+ {[%clk 0:00:02.6]} 66.
Kg2 {[%clk 0:00:04]} 66... Kxh6 {[%clk 0:00:03]} 67. Qg5+ {[%clk 0:00:04]} 67...
Kh7 {[%clk 0:00:03.1]} 68. h5 {[%clk 0:00:04.9]} 68... b1=Q {[%clk 0:00:03.3]}
69. hxg6+ {[%clk 0:00:04.9]} 69... Qxg6 {[%clk 0:00:03.3]} 0-1

[Event "Early-Titled-Tuesday-Blitz-September-26-2023"]
[Site "Chess.com"]
[Date "2023.09.26"]
[Round "10"]
[White "TheRigos"]
[Black "blitzking1729"]
[Result "0-1"]
[WhiteElo "2620"]
[BlackElo "2776"]
[TimeControl "180+1"]
[EndTime "9:57:59 PDT"]
[Termination "blitzking1729 won by resignation"]

1. Nf3 {[%clk 0:02:54.6]} 1... Nf6 {[%clk 0:03:00]} 2. g3 {[%clk 0:02:55.5]}
2... g6 {[%clk 0:03:00.4]} 3. b3 {[%clk 0:02:55.5]} 3... Bg7 {[%clk 0:03:01.1]}
4. Bb2 {[%clk 0:02:56.4]} 4... O-O {[%clk 0:03:01.6]} 5. Bg2 {[%clk 0:02:56.9]}
5... Ne8 {[%clk 0:03:02.4]} 6. d4 {[%clk 0:02:55.1]} 6... c5 {[%clk 0:03:01.9]}
7. O-O {[%clk 0:02:45.7]} 7... Nc6 {[%clk 0:03:00.5]} 8. c4 {[%clk 0:02:40.6]}
8... d6 {[%clk 0:02:56.3]} 9. h3 {[%clk 0:02:33.6]} 9... Nc7 {[%clk 0:02:51.6]}
10. Qd2 {[%clk 0:02:32.4]} 10... cxd4 {[%clk 0:02:49.7]} 11. Nxd4 {[%clk
0:02:31.2]} 11... Bd7 {[%clk 0:02:49.5]} 12. e4 {[%clk 0:01:57.9]} 12... Qc8
{[%clk 0:02:42.3]} 13. Nxc6 {[%clk 0:01:56.9]} 13... bxc6 {[%clk 0:02:39.1]} 14.
Bxg7 {[%clk 0:01:55.8]} 14... Kxg7 {[%clk 0:02:40]} 15. Kh2 {[%clk 0:01:49.6]}
15... Rb8 {[%clk 0:02:18.8]} 16. Qa5 {[%clk 0:01:48.8]} 16... Qb7 {[%clk
0:02:17.8]} 17. e5 {[%clk 0:01:33.7]} 17... d5 {[%clk 0:02:09.1]} 18. Nd2 {[%clk
0:01:12.7]} 18... Qb6 {[%clk 0:01:51.8]} 19. Qc3 {[%clk 0:01:08.8]} 19... d4
{[%clk 0:01:46.9]} 20. Qc2 {[%clk 0:01:03.9]} 20... c5 {[%clk 0:01:46.1]} 21. f4
{[%clk 0:00:57.2]} 21... f5 {[%clk 0:01:42.2]} 22. exf6+ {[%clk 0:00:53.1]}
22... exf6 {[%clk 0:01:41.8]} 23. Rae1 {[%clk 0:00:53.5]} 23... Rbe8 {[%clk
0:01:41.2]} 24. Qd3 {[%clk 0:00:40.4]} 24... Qa5 {[%clk 0:01:29.3]} 25. a4
{[%clk 0:00:32]} 25... Na6 {[%clk 0:01:28.3]} 26. Ne4 {[%clk 0:00:30.4]} 26...
f5 {[%clk 0:01:17.4]} 27. Nd2 {[%clk 0:00:30.2]} 27... Qc3 {[%clk 0:01:03.3]}
28. Qxc3 {[%clk 0:00:27.2]} 28... dxc3 {[%clk 0:01:03.8]} 29. Nf3 {[%clk
0:00:27.8]} 29... Bc6 {[%clk 0:00:35.1]} 30. Ne5 {[%clk 0:00:27.6]} 30... Bxg2
{[%clk 0:00:34.7]} 31. Kxg2 {[%clk 0:00:28.5]} 31... c2 {[%clk 0:00:32]} 32. Nd3
{[%clk 0:00:18.5]} 32... Rxe1 {[%clk 0:00:30.7]} 33. Rxe1 {[%clk 0:00:19.1]}
33... Rd8 {[%clk 0:00:30.9]} 34. Nc1 {[%clk 0:00:09.1]} 34... Nb4 {[%clk
0:00:30.1]} 35. Kf3 {[%clk 0:00:09.6]} 35... Rd2 {[%clk 0:00:22.5]} 36. g4
{[%clk 0:00:08.7]} 36... Kf6 {[%clk 0:00:21.4]} 37. Ke3 {[%clk 0:00:08.2]} 37...
Rh2 {[%clk 0:00:20.9]} 38. g5+ {[%clk 0:00:05.3]} 38... Kf7 {[%clk 0:00:21.2]}
39. Kf3 {[%clk 0:00:03.5]} 39... Rxh3+ {[%clk 0:00:21.3]} 40. Kg2 {[%clk
0:00:04.3]} 40... Rd3 {[%clk 0:00:09.9]} 41. Kf2 {[%clk 0:00:03.7]} 41... Rd2+
{[%clk 0:00:08.1]} 42. Ke3 {[%clk 0:00:03.7]} 42... Rh2 {[%clk 0:00:08.1]} 43.
Ne2 {[%clk 0:00:02.2]} 43... Na2 {[%clk 0:00:07]} 44. Nc1 {[%clk 0:00:01.1]}
44... Nxc1 {[%clk 0:00:04.7]} 45. Rxc1 {[%clk 0:00:02]} 45... Rh3+ {[%clk
0:00:04.3]} 46. Kd2 {[%clk 0:00:02.4]} 46... Rxb3 {[%clk 0:00:05]} 47. Rxc2
{[%clk 0:00:03.1]} 47... Rf3 {[%clk 0:00:04.9]} 48. Rb2 {[%clk 0:00:03]} 48...
Rxf4 {[%clk 0:00:05.5]} 49. Rb7+ {[%clk 0:00:03.5]} 49... Ke6 {[%clk 0:00:05.3]}
50. Rxh7 {[%clk 0:00:02.6]} 50... Rxc4 {[%clk 0:00:04.9]} 51. Rg7 {[%clk
0:00:03.5]} 51... Rxa4 {[%clk 0:00:03.1]} 52. Rxg6+ {[%clk 0:00:04.4]} 52... Ke5
{[%clk 0:00:03.7]} 53. Rc6 {[%clk 0:00:04.5]} 53... Kd5 {[%clk 0:00:03.4]} 54.
Rc8 {[%clk 0:00:05.1]} 54... Rg4 {[%clk 0:00:03.7]} 55. Rc7 {[%clk 0:00:03.9]}
55... Rxg5 {[%clk 0:00:03.8]} 56. Rxa7 {[%clk 0:00:04.8]} 56... Rg3 {[%clk
0:00:03.4]} 57. Rf7 {[%clk 0:00:04]} 57... Ke5 {[%clk 0:00:02.5]} 58. Rc7 {[%clk
0:00:04.9]} 58... Kf4 {[%clk 0:00:02.1]} 59. Rf7 {[%clk 0:00:05.7]} 59... Rg2+
{[%clk 0:00:02.4]} 60. Kd3 {[%clk 0:00:04]} 60... Rg1 {[%clk 0:00:03]} 61. Rc7
{[%clk 0:00:02.9]} 61... Re1 {[%clk 0:00:03.6]} 62. Rxc5 {[%clk 0:00:02]} 62...
Re8 {[%clk 0:00:04.3]} 63. Kd2 {[%clk 0:00:02.9]} 63... Kg4 {[%clk 0:00:04.1]}
64. Rc7 {[%clk 0:00:02.6]} 64... f4 {[%clk 0:00:04.3]} 65. Rg7+ {[%clk
0:00:03.5]} 65... Kf3 {[%clk 0:00:04.2]} 66. Kd3 {[%clk 0:00:03.8]} 66... Rd8+
{[%clk 0:00:04.3]} 67. Kc2 {[%clk 0:00:04.3]} 67... Ke2 {[%clk 0:00:04.5]} 68.
Re7+ {[%clk 0:00:03.9]} 68... Kf2 {[%clk 0:00:05.1]} 69. Rg7 {[%clk 0:00:04.8]}
69... f3 {[%clk 0:00:05.5]} 70. Re7 {[%clk 0:00:04.3]} 70... Kf1 {[%clk
0:00:05.6]} 71. Rg7 {[%clk 0:00:03.7]} 71... f2 {[%clk 0:00:06.1]} 72. Rg6
{[%clk 0:00:04]} 72... Rd5 {[%clk 0:00:03.2]} 73. Rg7 {[%clk 0:00:03.6]} 73...
Ke2 {[%clk 0:00:03.4]} 74. Re7+ {[%clk 0:00:02.7]} 74... Kf3 {[%clk 0:00:03.9]}
75. Rf7+ {[%clk 0:00:03.6]} 75... Ke3 {[%clk 0:00:04.3]} 76. Re7+ {[%clk
0:00:03.7]} 76... Kf4 {[%clk 0:00:04]} 77. Re8 {[%clk 0:00:03.4]} 77... f1=Q
{[%clk 0:00:04]} 78. Rf8+ {[%clk 0:00:03.8]} 78... Rf5 {[%clk 0:00:04.6]} 79.
Rc8 {[%clk 0:00:04.5]} 79... Qe2+ {[%clk 0:00:04]} 0-1

[Event "Early-Titled-Tuesday-Blitz-September-26-2023"]
[Site "Chess.com"]
[Date "2023.09.26"]
[Round "11"]
[White "stratacticos"]
[Black "GMJustin"]
[Result "0-1"]
[WhiteElo "1799"]
[BlackElo "2216"]
[TimeControl "180+1"]
[EndTime "10:00:48 PDT"]
[Termination "GMJustin won by resignation"]

1. e4 {[%clk 0:02:58.8]} 1... e5 {[%clk 0:02:47.3]} 2. Nf3 {[%clk 0:02:56.1]}
2... Nc6 {[%clk 0:02:45.5]} 3. Bc4 {[%clk 0:02:55.7]} 3... Bc5 {[%clk
0:02:40.2]} 4. O-O {[%clk 0:02:53.8]} 4... Nf6 {[%clk 0:02:37.4]} 5. b4 {[%clk
0:02:49.2]} 5... Bxb4 {[%clk 0:02:31.4]} 6. c3 {[%clk 0:02:48.8]} 6... Bd6
{[%clk 0:02:26.7]} 7. d4 {[%clk 0:02:46.9]} 7... O-O {[%clk 0:02:25.9]} 8. dxe5
{[%clk 0:02:40.6]} 8... Nxe5 {[%clk 0:02:25.1]} 9. Nxe5 {[%clk 0:02:40.5]} 9...
Bxe5 {[%clk 0:02:22.4]} 10. f4 {[%clk 0:02:39.6]} 10... Bd6 {[%clk 0:02:19.9]}
11. e5 {[%clk 0:02:39.3]} 11... Bc5+ {[%clk 0:02:17.1]} 12. Kh1 {[%clk
0:02:38.5]} 12... Ne4 {[%clk 0:02:06.4]} 13. Qf3 {[%clk 0:02:32]} 13... d5
{[%clk 0:02:02.6]} 14. Qxe4 {[%clk 0:02:27.8]} 14... dxe4 {[%clk 0:02:01.3]} 0-1

[Event "Early-Titled-Tuesday-Blitz-September-26-2023"]
[Site "Chess.com"]
[Date "2023.09.26"]
[Round "11"]
[White "ellatambien"]
[Black "Lennis93"]
[Result "1-0"]
[WhiteElo "2557"]
[BlackElo "2722"]
[TimeControl "180+1"]
[EndTime "10:01:28 PDT"]
[Termination "ellatambien won by resignation"]

1. c4 {[%clk 0:03:00.9]} 1... e5 {[%clk 0:02:59.6]} 2. Nc3 {[%clk 0:02:57.8]}
2... Nf6 {[%clk 0:03:00]} 3. Nf3 {[%clk 0:02:57.5]} 3... Nc6 {[%clk 0:02:59.7]}
4. e4 {[%clk 0:02:57.6]} 4... Bb4 {[%clk 0:02:59.6]} 5. d3 {[%clk 0:02:57.7]}
5... d6 {[%clk 0:03:00.1]} 6. Be2 {[%clk 0:02:57.7]} 6... Bg4 {[%clk 0:02:58.1]}
7. O-O {[%clk 0:02:58.2]} 7... Bxf3 {[%clk 0:02:58.2]} 8. Bxf3 {[%clk
0:02:58.1]} 8... a5 {[%clk 0:02:58.4]} 9. g3 {[%clk 0:02:52.8]} 9... h5 {[%clk
0:02:57.3]} 10. h4 {[%clk 0:02:52.3]} 10... Qd7 {[%clk 0:02:53.4]} 11. Bg5
{[%clk 0:02:51.2]} 11... Nh7 {[%clk 0:02:52.4]} 12. Be3 {[%clk 0:02:50.5]} 12...
g6 {[%clk 0:02:50.2]} 13. Nd5 {[%clk 0:02:50.6]} 13... Bc5 {[%clk 0:02:48.7]}
14. a3 {[%clk 0:02:48]} 14... Nd4 {[%clk 0:02:45.7]} 15. Bg2 {[%clk 0:02:45.3]}
15... c6 {[%clk 0:02:45.7]} 16. Nc3 {[%clk 0:02:44.1]} 16... Nf6 {[%clk
0:02:40.5]} 17. Rb1 {[%clk 0:02:43.4]} 17... Ng4 {[%clk 0:02:40.3]} 18. Bd2
{[%clk 0:02:42.1]} 18... b5 {[%clk 0:02:38.3]} 19. cxb5 {[%clk 0:02:40.9]} 19...
cxb5 {[%clk 0:02:39.2]} 20. Nd5 {[%clk 0:02:41]} 20... a4 {[%clk 0:02:34.9]} 21.
Kh1 {[%clk 0:02:35.9]} 21... O-O {[%clk 0:02:30.9]} 22. f3 {[%clk 0:02:35.6]}
22... f5 {[%clk 0:02:21.8]} 23. fxg4 {[%clk 0:02:34]} 23... hxg4 {[%clk
0:02:21.7]} 24. Bg5 {[%clk 0:02:30.3]} 24... Ne6 {[%clk 0:02:08.7]} 25. Nf6+
{[%clk 0:02:29]} 25... Rxf6 {[%clk 0:02:09.1]} 26. Bxf6 {[%clk 0:02:29.8]} 26...
Qh7 {[%clk 0:02:06.5]} 27. exf5 {[%clk 0:02:26.8]} 27... gxf5 {[%clk 0:02:05.6]}
28. Bxa8 {[%clk 0:02:26]} 28... Kf7 {[%clk 0:02:06]} 29. Bg5 {[%clk 0:02:17.7]}
29... Nxg5 {[%clk 0:02:05.7]} 30. Qxg4 {[%clk 0:02:17.8]} 1-0

[Event "Early-Titled-Tuesday-Blitz-September-26-2023"]
[Site "Chess.com"]
[Date "2023.09.26"]
[Round "11"]
[White "Witik"]
[Black "amanmuhammethommadov"]
[Result "1-0"]
[WhiteElo "2740"]
[BlackElo "2592"]
[TimeControl "180+1"]
[EndTime "10:01:42 PDT"]
[Termination "Witik won by checkmate"]

1. e4 {[%clk 0:02:58.7]} 1... c5 {[%clk 0:03:00.3]} 2. d4 {[%clk 0:02:58.9]}
2... cxd4 {[%clk 0:03:00.4]} 3. c3 {[%clk 0:02:59.6]} 3... dxc3 {[%clk 0:03:01]}
4. Nxc3 {[%clk 0:03:00.5]} 4... Nc6 {[%clk 0:03:01.9]} 5. Nf3 {[%clk 0:03:01]}
5... d6 {[%clk 0:03:02.4]} 6. Bc4 {[%clk 0:03:00.8]} 6... e6 {[%clk 0:03:02.3]}
7. O-O {[%clk 0:02:59.8]} 7... Nf6 {[%clk 0:03:02.6]} 8. Qe2 {[%clk 0:02:59.3]}
8... Be7 {[%clk 0:03:02.9]} 9. Rd1 {[%clk 0:02:59.3]} 9... e5 {[%clk 0:03:03.4]}
10. Bb5 {[%clk 0:02:58.6]} 10... Bd7 {[%clk 0:03:02.9]} 11. Bg5 {[%clk 0:02:57]}
11... Bg4 {[%clk 0:02:44.6]} 12. Qc4 {[%clk 0:01:49.4]} 12... Rc8 {[%clk
0:01:36.1]} 13. Nxe5 {[%clk 0:01:48]} 13... Bxd1 {[%clk 0:01:35.8]} 14. Qxf7#
{[%clk 0:01:47.7]} 1-0

[Event "Early-Titled-Tuesday-Blitz-September-26-2023"]
[Site "Chess.com"]
[Date "2023.09.26"]
[Round "11"]
[White "Druid24"]
[Black "KaydenTroffChess"]
[Result "0-1"]
[WhiteElo "2664"]
[BlackElo "2785"]
[TimeControl "180+1"]
[EndTime "10:01:57 PDT"]
[Termination "KaydenTroffChess won by resignation"]

1. e4 {[%clk 0:03:00.9]} 1... c5 {[%clk 0:03:00]} 2. Nc3 {[%clk 0:03:00.6]} 2...
g6 {[%clk 0:03:00.4]} 3. d4 {[%clk 0:02:59.2]} 3... cxd4 {[%clk 0:03:00.3]} 4.
Qxd4 {[%clk 0:03:00.1]} 4... Nf6 {[%clk 0:03:00.8]} 5. Nf3 {[%clk 0:02:59.7]}
5... Nc6 {[%clk 0:03:01.1]} 6. Qa4 {[%clk 0:02:59.6]} 6... d6 {[%clk 0:03:01.8]}
7. e5 {[%clk 0:02:59.6]} 7... dxe5 {[%clk 0:03:02.7]} 8. Nxe5 {[%clk 0:03:00]}
8... Bd7 {[%clk 0:03:03.3]} 9. Nxd7 {[%clk 0:02:59.3]} 9... Nxd7 {[%clk
0:03:04.2]} 10. Be3 {[%clk 0:02:59.4]} 10... Bg7 {[%clk 0:03:04.1]} 11. Rd1
{[%clk 0:02:59.3]} 11... Qc8 {[%clk 0:03:04.1]} 12. Bb5 {[%clk 0:02:59.6]} 12...
O-O {[%clk 0:03:03.2]} 13. O-O {[%clk 0:02:58.6]} 13... Nb6 {[%clk 0:02:48.1]}
14. Qh4 {[%clk 0:02:56.9]} 14... Qf5 {[%clk 0:02:42.6]} 15. Bxc6 {[%clk
0:02:55.3]} 15... bxc6 {[%clk 0:02:41.6]} 16. Qxe7 {[%clk 0:02:55.8]} 16... Qxc2
{[%clk 0:02:38.8]} 17. Rd2 {[%clk 0:02:53.5]} 17... Qf5 {[%clk 0:02:38.5]} 18.
Qe4 {[%clk 0:02:46.4]} 18... Qxe4 {[%clk 0:02:33.3]} 19. Nxe4 {[%clk 0:02:47.3]}
19... Nc4 {[%clk 0:02:33.6]} 20. Rc2 {[%clk 0:02:44.6]} 20... Nxe3 {[%clk
0:02:27.9]} 21. fxe3 {[%clk 0:02:45.5]} 21... Rfe8 {[%clk 0:02:25.1]} 22. Nf6+
{[%clk 0:02:46.1]} 22... Bxf6 {[%clk 0:02:24.8]} 23. Rxf6 {[%clk 0:02:47]} 23...
Rxe3 {[%clk 0:02:23.6]} 24. Rfxc6 {[%clk 0:02:46.9]} 24... Kg7 {[%clk
0:02:21.6]} 25. Kf2 {[%clk 0:02:45.7]} 25... Re5 {[%clk 0:02:20.6]} 26. Rc8
{[%clk 0:02:40.3]} 26... Rxc8 {[%clk 0:02:17]} 27. Rxc8 {[%clk 0:02:41.2]} 27...
Rf5+ {[%clk 0:02:17]} 28. Ke3 {[%clk 0:02:40.9]} 28... Re5+ {[%clk 0:02:16.5]}
29. Kd3 {[%clk 0:02:40.6]} 29... Rh5 {[%clk 0:02:11.9]} 30. g3 {[%clk
0:02:40.5]} 30... Rg5 {[%clk 0:02:12.6]} 31. Ra8 {[%clk 0:02:36]} 31... Ra5
{[%clk 0:02:11.6]} 32. a3 {[%clk 0:02:35.2]} 32... h5 {[%clk 0:02:07]} 33. Kc4
{[%clk 0:02:34.9]} 33... g5 {[%clk 0:02:03.3]} 34. Kb4 {[%clk 0:02:34.6]} 34...
Ra6 {[%clk 0:02:03.5]} 35. a4 {[%clk 0:02:35]} 35... Rb6+ {[%clk 0:02:02.8]} 36.
Ka3 {[%clk 0:02:34.7]} 36... Rb7 {[%clk 0:02:03.1]} 37. b4 {[%clk 0:02:34.3]}
37... f5 {[%clk 0:02:03.4]} 38. b5 {[%clk 0:02:32.9]} 38... f4 {[%clk 0:02:03]}
39. gxf4 {[%clk 0:02:33.8]} 39... gxf4 {[%clk 0:02:03.8]} 40. Rc8 {[%clk
0:02:29.5]} 40... f3 {[%clk 0:02:02]} 41. Rc2 {[%clk 0:02:26.6]} 41... Rf7
{[%clk 0:02:01.7]} 42. Rf2 {[%clk 0:02:25.5]} 42... Kg6 {[%clk 0:02:02.4]} 43.
Kb4 {[%clk 0:02:22.5]} 43... Kg5 {[%clk 0:02:02.9]} 44. a5 {[%clk 0:02:22.6]}
44... Kf4 {[%clk 0:02:02.7]} 45. b6 {[%clk 0:02:21.4]} 45... axb6 {[%clk
0:02:02.5]} 46. axb6 {[%clk 0:02:22.3]} 46... Ke3 {[%clk 0:02:02.9]} 47. Rb2
{[%clk 0:02:22.2]} 47... f2 {[%clk 0:02:01.9]} 48. Rb1 {[%clk 0:02:22.7]} 48...
f1=Q {[%clk 0:02:01.7]} 0-1

[Event "Early-Titled-Tuesday-Blitz-September-26-2023"]
[Site "Chess.com"]
[Date "2023.09.26"]
[Round "11"]
[White "vishwa_vijeta"]
[Black "GMTalks_Youtube"]
[Result "0-1"]
[WhiteElo "2548"]
[BlackElo "2723"]
[TimeControl "180+1"]
[EndTime "10:02:33 PDT"]
[Termination "GMTalks_Youtube won by resignation"]

1. e4 {[%clk 0:02:55.6]} 1... e5 {[%clk 0:02:59.8]} 2. Nf3 {[%clk 0:02:50.5]}
2... Nc6 {[%clk 0:02:59.4]} 3. d4 {[%clk 0:02:48]} 3... exd4 {[%clk 0:02:58.8]}
4. Bc4 {[%clk 0:02:44.6]} 4... Bc5 {[%clk 0:02:57.1]} 5. c3 {[%clk 0:02:43.7]}
5... Nf6 {[%clk 0:02:56.2]} 6. cxd4 {[%clk 0:02:40.8]} 6... Bb4+ {[%clk
0:02:55.6]} 7. Bd2 {[%clk 0:02:37.6]} 7... Bxd2+ {[%clk 0:02:53.4]} 8. Nbxd2
{[%clk 0:02:36.9]} 8... d5 {[%clk 0:02:53.9]} 9. exd5 {[%clk 0:02:36.4]} 9...
Nxd5 {[%clk 0:02:54.6]} 10. O-O {[%clk 0:02:30]} 10... O-O {[%clk 0:02:53.1]}
11. Qb3 {[%clk 0:02:27.3]} 11... Nb6 {[%clk 0:02:52.3]} 12. Rad1 {[%clk
0:02:26.2]} 12... Na5 {[%clk 0:02:50.6]} 13. Qc3 {[%clk 0:02:24.7]} 13... Naxc4
{[%clk 0:02:49.4]} 14. Nxc4 {[%clk 0:02:25.6]} 14... Nd5 {[%clk 0:02:49.1]} 15.
Qb3 {[%clk 0:02:22]} 15... c6 {[%clk 0:02:48.7]} 16. h3 {[%clk 0:02:21.4]} 16...
Rb8 {[%clk 0:02:41.2]} 17. Nce5 {[%clk 0:02:20.3]} 17... Be6 {[%clk 0:02:38.8]}
18. Rfe1 {[%clk 0:02:19]} 18... h6 {[%clk 0:02:28]} 19. Nd3 {[%clk 0:02:11.9]}
19... Ne3 {[%clk 0:02:22.9]} 20. Qa3 {[%clk 0:01:56.6]} 20... Nxd1 {[%clk
0:02:22]} 21. Rxd1 {[%clk 0:01:53.5]} 21... Bd5 {[%clk 0:02:21]} 22. Nfe5 {[%clk
0:01:52.7]} 22... a6 {[%clk 0:02:10.3]} 23. Nf4 {[%clk 0:01:52.2]} 23... Re8
{[%clk 0:02:06.4]} 24. Rd3 {[%clk 0:01:51.4]} 24... Qg5 {[%clk 0:02:01.4]} 25.
Nxd5 {[%clk 0:01:38.6]} 25... cxd5 {[%clk 0:02:00.7]} 26. Rg3 {[%clk 0:01:38.7]}
26... Qc1+ {[%clk 0:01:59]} 27. Kh2 {[%clk 0:01:38]} 27... Qf4 {[%clk
0:01:58.9]} 28. Ng4 {[%clk 0:01:28.7]} 28... h5 {[%clk 0:01:46.2]} 0-1

[Event "Early-Titled-Tuesday-Blitz-September-26-2023"]
[Site "Chess.com"]
[Date "2023.09.26"]
[Round "11"]
[White "Gyulamiryan-koryun"]
[Black "Flopezin"]
[Result "0-1"]
[WhiteElo "2010"]
[BlackElo "2300"]
[TimeControl "180+1"]
[EndTime "10:02:33 PDT"]
[Termination "Flopezin won by checkmate"]

1. e4 {[%clk 0:02:53.6]} 1... e5 {[%clk 0:02:59.8]} 2. Nf3 {[%clk 0:02:52.3]}
2... Nc6 {[%clk 0:02:59.6]} 3. Bc4 {[%clk 0:02:52]} 3... Nf6 {[%clk 0:02:59.1]}
4. Ng5 {[%clk 0:02:50.5]} 4... d5 {[%clk 0:02:57.3]} 5. exd5 {[%clk 0:02:50.1]}
5... Na5 {[%clk 0:02:54.1]} 6. Bb5+ {[%clk 0:02:49.4]} 6... c6 {[%clk
0:02:53.7]} 7. dxc6 {[%clk 0:02:49.6]} 7... bxc6 {[%clk 0:02:54.6]} 8. Qf3
{[%clk 0:02:45.4]} 8... cxb5 {[%clk 0:02:48.9]} 9. Qxa8 {[%clk 0:02:43.1]} 9...
Qc7 {[%clk 0:02:47.5]} 10. Qf3 {[%clk 0:02:25.5]} 10... Nc6 {[%clk 0:02:44.1]}
11. c3 {[%clk 0:02:22.9]} 11... Bg4 {[%clk 0:02:36.7]} 12. Qg3 {[%clk
0:02:16.9]} 12... Nd4 {[%clk 0:02:34.2]} 13. Qd3 {[%clk 0:02:02.5]} 13... Bf5
{[%clk 0:02:22.8]} 14. Qg3 {[%clk 0:01:51.6]} 14... Nc2+ {[%clk 0:02:20.6]} 15.
Kd1 {[%clk 0:01:51.4]} 15... Nxa1 {[%clk 0:02:18.8]} 16. d3 {[%clk 0:01:47.1]}
16... Bc5 {[%clk 0:02:09]} 17. Re1 {[%clk 0:01:46.9]} 17... O-O {[%clk
0:02:07.6]} 18. Qxe5 {[%clk 0:01:40.4]} 18... Qd7 {[%clk 0:01:54.5]} 19. Qxc5
{[%clk 0:01:30.6]} 19... Qxd3+ {[%clk 0:01:54]} 20. Nd2 {[%clk 0:01:22]} 20...
Qc2+ {[%clk 0:01:53.3]} 21. Ke2 {[%clk 0:01:21.9]} 21... Re8+ {[%clk 0:01:53.9]}
22. Kf1 {[%clk 0:01:12.5]} 22... Bd3+ {[%clk 0:01:51.8]} 23. Re2 {[%clk
0:01:01.7]} 23... Qd1# {[%clk 0:01:51.5]} 0-1